fUSD/lending_fUSD_20250213
["ID","MTS","AMOUNT","RATE_DAILY","PERIOD"]
[353013041,1739485937830,-825.94,0.00014849,2]
[353013042,1739485937840,-717.12,0.00014849,2]
[353013043,1739485937849,-718.5,0.00014849,2]
[353013044,1739485937859,-500.0,0.00014849,2]
[353013045,1739485937869,-1464.62,0.00014849,2]
[353013046,1739485937879,-1779.83,0.00014849,2]
[353013047,1739485937888,-551.0,0.00014849,2]
[353013048,1739485937898,-1813.74,0.00014849,2]
[353013049,1739485937908,-558.37,0.00014849,2]
[353013050,1739485937917,-807.26,0.00014849,2]
[353013051,1739485937928,-1306.72,0.00014849,2]
[353013052,1739485937937,-1123.76,0.00014849,2]
[353013053,1739485937947,-500.0,0.00014849,2]
[353013054,1739485937957,-156.890312,0.00014849,2]
[353013055,1739485937966,-844.9,0.00014849,2]
[353013056,1739485937976,-2257.68,0.00014849,2]
[353013057,1739485937985,-831.33,0.00014849,2]
[353013058,1739485937995,-923.9,0.00014849,2]
[353013059,1739485938004,-500.0,0.00014849,2]
[353013060,1739485938014,-1270.71,0.00014849,2]
[353013061,1739485938024,-897.69,0.00014849,2]
[353013062,1739485938039,-853.17,0.00014849,2]
[353013063,1739485938049,-840.31,0.00014849,2]
[353013064,1739485938059,-1705.94,0.00014849,2]
[353013065,1739485938070,-500.0,0.00014849,2]
[353013066,1739485938079,-876.71,0.00014849,2]
[353013067,1739485938089,-885.91,0.00014849,2]
[353013068,1739485938099,-500.0,0.00014849,2]
[353013069,1739485938109,-2161.09,0.00014849,2]
[353013070,1739485938119,-500.0,0.00014849,2]
[353013071,1739485938128,-3040.0,0.00014849,2]
[353013072,1739485938137,-1238.79,0.00014849,2]
[353013073,1739485938147,-1105.8,0.00014849,2]
[353013074,1739485938156,-2265.19,0.00014849,2]
[353013075,1739485938167,-1322.86,0.00014849,2]
[353013076,1739485938176,-906.34,0.00014849,2]
[353013077,1739485938186,-523.6,0.00014849,2]
[353013078,1739485938195,-646.18,0.00014849,2]
[353013079,1739485938204,-893.53,0.00014849,2]
[353013080,1739485938214,-970.55,0.00014849,2]
[353013081,1739485938224,-702.31,0.00014849,2]
[353013082,1739485938234,-553.1,0.00014849,2]
[353013083,1739485938243,-2482.92,0.00014849,2]
[353013084,1739485938253,-500.0,0.00014849,2]
[353013085,1739485938263,-858.18,0.00014849,2]
[353013086,1739485938272,-669.76,0.00014849,2]
[353013087,1739485938282,-710.97,0.00014849,2]
[353013088,1739485938292,-1892.5,0.00014849,2]
[353013089,1739485938302,-739.26,0.00014849,2]
[353013090,1739485938312,-1559.26,0.00014849,2]
[353013091,1739485938321,-1326.07,0.00014849,2]
[353013092,1739485938331,-602.38,0.00014849,2]
[353013093,1739485938341,-835.99,0.00014849,2]
[353013094,1739485938351,-1789.82,0.00014849,2]
[353013095,1739485938361,-500.0,0.00014849,2]
[353013096,1739485938370,-1318.31,0.00014849,2]
[353013097,1739485938380,-551.86,0.00014849,2]
[353013098,1739485938389,-864.67,0.00014849,2]
[353013099,1739485938399,-500.0,0.00014849,2]
[353013100,1739485938408,-1141.82,0.00014849,2]
[353013101,1739485938418,-1994.16,0.00014849,2]
[353013102,1739485938428,-812.11,0.00014849,2]
[353013103,1739485938438,-500.0,0.00014849,2]
[353013104,1739485938447,-1079.19,0.00014849,2]
[353013105,1739485938457,-859.06,0.00014849,2]
[353013106,1739485938466,-1941.15,0.00014849,2]
[353013107,1739485938476,-2409.32,0.00014849,2]
[353013108,1739485938486,-592.63,0.00014849,2]
[353013109,1739485938495,-900.38,0.00014849,2]
[353013110,1739485938504,-156.890312,0.00014849,2]
[353013111,1739485938515,-1741.64,0.00014849,2]
[353013112,1739485938524,-1010.42,0.00014849,2]
[353013113,1739485938534,-1201.88,0.00014849,2]
[353013114,1739485938543,-730.65,0.00014849,2]
[353013115,1739485938553,-2964.55,0.00014849,2]
[353013116,1739485938562,-645.62,0.00014849,2]
[353013117,1739485938571,-1693.27,0.00014849,2]
[353013118,1739485938581,-765.27,0.00014849,2]
[353013119,1739485938591,-1023.18,0.00014849,2]
[353013120,1739485938600,-1983.35,0.00014849,2]
[353013121,1739485938611,-1199.21,0.00014849,2]
[353013122,1739485938620,-1991.14,0.00014849,2]
[353013123,1739485938630,-533.09,0.00014849,2]
[353013124,1739485938640,-4281.75,0.00014849,2]
[353013125,1739485938650,-500.0,0.00014849,2]
[353013126,1739485938660,-2700.69,0.00014849,2]
[353013127,1739485938670,-1072.56,0.00014849,2]
[353013128,1739485938681,-2181.51,0.00014849,2]
[353013129,1739485938690,-2105.12,0.00014849,2]
[353013130,1739485938701,-2362.29,0.00014849,2]
[353013131,1739485938710,-797.65,0.00014849,2]
[353013132,1739485938720,-1372.43,0.00014849,2]
[353013133,1739485938730,-500.0,0.00014849,2]
[353013134,1739485938740,-2270.27,0.00014849,2]
[353013135,1739485938750,-701.26,0.00014849,2]
[353013136,1739485938760,-500.0,0.00014849,2]
[353013137,1739485938770,-1635.6,0.00014849,2]
[353013138,1739485938780,-1210.46,0.00014849,2]
[353013139,1739485938790,-1551.99,0.00014849,2]
[353013140,1739485938799,-4033.58,0.00014849,2]
[353013141,1739485938809,-2766.93,0.00014849,2]
[353013142,1739485938819,-2765.04,0.00014849,2]
[353013143,1739485938828,-660.75,0.00014849,2]
[353013144,1739485938838,-2103.7,0.00014849,2]
[353013145,1739485938848,-924.48,0.00014849,2]
[353013146,1739485938858,-794.33,0.00014849,2]
[353013147,1739485938867,-1140.21,0.00014849,2]
[353013148,1739485938877,-1374.92,0.00014849,2]
[353013149,1739485938886,-500.0,0.00014849,2]
[353013150,1739485938896,-1394.91,0.00014849,2]
[353013151,1739485938906,-2230.12,0.00014849,2]
[353013152,1739485938915,-500.0,0.00014849,2]
[353013153,1739485938925,-878.31,0.00014849,2]
[353013154,1739485938934,-1071.07,0.00014849,2]
[353013155,1739485938944,-3342.84,0.00014849,2]
[353013156,1739485938954,-1308.38,0.00014849,2]
[353013157,1739485938964,-683.58,0.00014849,2]
[353013158,1739485938974,-3531.08,0.00014849,2]
[353013159,1739485938983,-1653.81,0.00014849,2]
[353013160,1739485938993,-553.67,0.00014849,2]
[353013161,1739485939002,-988.77,0.00014849,2]
[353013162,1739485939013,-2226.29,0.00014849,2]
[353013163,1739485939024,-969.77,0.00014849,2]
[353013164,1739485939037,-1807.21,0.00014849,2]
[353013165,1739485939047,-500.0,0.00014849,2]
[353013166,1739485939057,-3314.33,0.00014849,2]
[353013167,1739485939066,-1796.12,0.00014849,2]
[353013168,1739485939077,-3189.0,0.00014849,2]
[353013169,1739485939087,-803.11,0.00014849,2]
[353013170,1739485939097,-607.85,0.00014849,2]
[353013171,1739485939107,-761.91,0.00014849,2]
[353013172,1739485939120,-621.21,0.00014849,2]
[353013173,1739485939131,-1972.85,0.00014849,2]
[353013174,1739485939143,-523.93,0.00014849,2]
[353013175,1739485939153,-3990.94,0.00014849,2]
[353013176,1739485939164,-719.42,0.00014849,2]
[353013177,1739485939177,-749.77,0.00014849,2]
[353013178,1739485939189,-500.0,0.00014849,2]
[353013179,1739485939200,-1753.67,0.00014849,2]
[353013180,1739485939214,-2497.17,0.00014849,2]
[353013181,1739485939225,-500.0,0.00014849,2]
[353013182,1739485939235,-1325.27,0.00014849,2]
[353013183,1739485939247,-3120.71,0.00014849,2]
[353013184,1739485939259,-511.69,0.00014849,2]
[353013185,1739485939271,-3912.39,0.00014849,2]
[353013186,1739485939282,-635.38,0.00014849,2]
[353013187,1739485939293,-1203.12,0.00014849,2]
[353013188,1739485939304,-500.0,0.00014849,2]
[353013189,1739485939315,-1628.89,0.00014849,2]
[353013190,1739485939326,-1174.26,0.00014849,2]
[353013191,1739485939337,-5014.48,0.00014849,2]
[353013192,1739485939348,-591.53,0.00014849,2]
[353013193,1739485939358,-2834.89,0.00014849,2]
[353013194,1739485939369,-1129.98,0.00014849,2]
[353013195,1739485939379,-4012.08,0.00014849,2]
[353013196,1739485939390,-1877.06,0.00014849,2]
[353013197,1739485939401,-2305.18,0.00014849,2]
[353013198,1739485939411,-3400.07,0.00014849,2]
[353013199,1739485939421,-1278.06,0.00014849,2]
[353013200,1739485939436,-2677.19,0.00014849,2]
[353013201,1739485939446,-2091.53,0.00014849,2]
[353013202,1739485939456,-10601.94,0.00014849,2]
[353013203,1739485939467,-6319.86,0.00014849,2]
[353013204,1739485939477,-1914.19,0.00014849,2]
[353013205,1739485939487,-2222.28,0.00014849,2]
[353013206,1739485939497,-1244.36,0.00014849,2]
[353013207,1739485939507,-2434.73,0.00014849,2]
[353013208,1739485939517,-1301.75,0.00014849,2]
[353013209,1739485939527,-3378.69,0.00014849,2]
[353013210,1739485939538,-1073.98,0.00014849,2]
[353013211,1739485939549,-500.0,0.00014849,2]
[353013212,1739485939559,-500.0,0.00014849,2]
[353013213,1739485939569,-1003.25,0.00014849,2]
[353013214,1739485939579,-1894.84,0.00014849,2]
[353013215,1739485939589,-3213.97,0.00014849,2]
[353013216,1739485939599,-1618.51,0.00014849,2]
[353013217,1739485939610,-3027.83,0.00014849,2]
[353013218,1739485939620,-1463.57,0.00014849,2]
[353013219,1739485939630,-551.57,0.00014849,2]
[353013220,1739485939640,-1866.04,0.00014849,2]
[353013221,1739485939650,-3405.09,0.00014849,2]
[353013222,1739485939660,-3794.0,0.00014849,2]
[353013223,1739485939669,-3558.25,0.00014849,2]
[353013224,1739485939681,-1199.38,0.00014849,2]
[353013225,1739485939691,-5141.78,0.00014849,2]
[353013226,1739485939701,-5036.58,0.00014849,2]
[353013227,1739485939711,-972.02,0.00014849,2]
[353013228,1739485939721,-1457.37,0.00014849,2]
[353013229,1739485939731,-1646.26,0.00014849,2]
[353013230,1739485939741,-1023.76,0.00014849,2]
[353013231,1739485939751,-4943.34,0.00014849,2]
[353013232,1739485939761,-973.76,0.00014849,2]
[353013233,1739485939771,-1078.92,0.00014849,2]
[353013234,1739485939781,-3488.7,0.00014849,2]
[353013235,1739485939791,-9947.08,0.00014849,2]
[353013236,1739485939800,-1167.35,0.00014849,2]
[353013237,1739485939811,-1925.44,0.00014849,2]
[353013238,1739485939821,-3374.31,0.00014849,2]
[353013239,1739485939831,-3871.01,0.00014849,2]
[353013240,1739485939841,-3262.34,0.00014849,2]
[353013241,1739485939852,-3751.7,0.00014849,2]
[353013242,1739485939862,-2216.47,0.00014849,2]
[353013243,1739485939872,-500.0,0.00014849,2]
[353013244,1739485939882,-500.0,0.00014849,2]
[353013245,1739485939892,-2198.57,0.00014849,2]
[353013246,1739485939902,-1272.94,0.00014849,2]
[353013247,1739485939912,-3047.23,0.00014849,2]
[353013248,1739485939922,-4282.13,0.00014849,2]
[353013249,1739485939933,-1579.29,0.00014849,2]
[353013250,1739485939943,-2262.09,0.00014849,2]
[353013251,1739485939954,-2034.1,0.00014849,2]
[353013252,1739485939964,-4796.16,0.00014849,2]
[353013253,1739485939974,-621.58,0.00014849,2]
[353013254,1739485939984,-4188.27,0.00014849,2]
[353013255,1739485939994,-2900.35,0.00014849,2]
[353013256,1739485940003,-5302.96,0.00014849,2]
[353013257,1739485940013,-3352.12,0.00014849,2]
[353013258,1739485940024,-525.01,0.00014849,2]
[353013259,1739485940034,-2517.29,0.00014849,2]
[353013260,1739485940046,-3510.5,0.00014849,2]
[353013261,1739485940056,-1911.76,0.00014849,2]
[353013262,1739485940067,-3186.25,0.00014849,2]
[353013263,1739485940077,-1411.53,0.00014849,2]
[353013264,1739485940087,-5245.34,0.00014849,2]
[353013265,1739485940096,-4040.71,0.00014849,2]
[353013266,1739485940106,-2434.4,0.00014849,2]
[353013267,1739485940116,-797.43,0.00014849,2]
[353013268,1739485940126,-3997.95,0.00014849,2]
[353013269,1739485940136,-3418.06,0.00014849,2]
[353013270,1739485940146,-3613.39,0.00014849,2]
[353013271,1739485940156,-566.64,0.00014849,2]
[353013272,1739485940166,-8838.73,0.00014849,2]
[353013273,1739485940176,-624.99,0.00014849,2]
[353013274,1739485940186,-720.74,0.00014849,2]
[353013275,1739485940196,-3533.94,0.00014849,2]
[353013276,1739485940206,-3776.32,0.00014849,2]
[353013277,1739485940217,-522.13,0.00014849,2]
[353013278,1739485940227,-4171.69,0.00014849,2]
[353013279,1739485940236,-2767.11,0.00014849,2]
[353013280,1739485940246,-500.0,0.00014849,2]
[353013281,1739485940256,-1300.63,0.00014849,2]
[353013282,1739485940267,-3523.18,0.00014849,2]
[353013283,1739485940277,-4629.45,0.00014849,2]
[353013284,1739485940287,-2317.93,0.00014849,2]
[353013285,1739485940297,-542.74,0.00014849,2]
[353013286,1739485940307,-6501.79,0.00014849,2]
[353013287,1739485940317,-649.96,0.00014849,2]
[353013288,1739485940327,-2852.77,0.00014849,2]
[353013289,1739485940336,-4468.57,0.00014849,2]
[353013290,1739485940346,-773.78,0.00014849,2]
[353013291,1739485940357,-724.47,0.00014849,2]
[353013292,1739485940366,-4071.43,0.00014849,2]
[353013293,1739485940375,-2513.38,0.00014849,2]
[353013294,1739485940384,-3113.41,0.00014849,2]
[353013295,1739485940394,-3680.29,0.00014849,2]
[353013296,1739485940404,-964.12,0.00014849,2]
[353013297,1739485940414,-500.0,0.00014849,2]
[353013298,1739485940423,-1523.71,0.00014849,2]
[353013299,1739485940434,-525.45,0.00014849,2]
[353013300,1739485940443,-741.53,0.00014849,2]
[353013301,1739485940453,-2768.98,0.00014849,2]
[353013302,1739485940462,-1470.77,0.00014849,2]
[353013303,1739485940472,-3441.38,0.00014849,2]
[353013304,1739485940482,-4132.51,0.00014849,2]
[353013305,1739485940491,-1712.88,0.00014849,2]
[353013306,1739485940501,-4938.55,0.00014849,2]
[353013307,1739485940511,-2124.68,0.00014849,2]
[353013308,1739485940520,-1789.26,0.00014849,2]
[353013309,1739485940530,-1226.02,0.00014849,2]
[353013310,1739485940540,-1451.96,0.00014849,2]
[353013311,1739485940550,-824.05,0.00014849,2]
[353013312,1739485940560,-3558.23,0.00014849,2]
[353013313,1739485940569,-4167.53,0.00014849,2]
[353013314,1739485940579,-880.79,0.00014849,2]
[353013315,1739485940589,-1838.56,0.00014849,2]
[353013316,1739485940598,-1936.97,0.00014849,2]
[353013317,1739485940608,-2962.2,0.00014849,2]
[353013318,1739485940618,-598.78,0.00014849,2]
[353013319,1739485940628,-3420.98,0.00014866,2]
[353013320,1739485940638,-173.0,0.00014872,2]
[353013321,1739485940648,-205.0,0.000149,2]
[353013322,1739485940658,-215.69504249,0.000149,2]
[353013323,1739485940667,-215.69504247,0.000149,2]
[353013324,1739485940677,-215.69504247,0.000149,2]
[353013325,1739485940687,-624860.869357,0.000149,2]
[353013326,1739485940697,-5003.55926,0.00014901,2]
[353013327,1739485940706,-1124.476697,0.00014931,2]
[353013328,1739485940716,-1030.770305,0.00014931,2]
[353013329,1739485940726,-1369.077968,0.00014931,2]
[353013330,1739485940736,-476.93819778,0.00014931,2]
[353013331,1739485940745,-500.0,0.00014931,2]
[353013332,1739485940755,-781.27,0.00014931,2]
[353013333,1739485940766,-640.12,0.00014931,2]
[353013334,1739485940778,-571.73,0.00014931,2]
[353013335,1739485940790,-767.83,0.00014931,2]
[353013336,1739485941047,-517.58,0.00014931,2]
[353013337,1739485941058,-748.33,0.00014931,2]
[353013338,1739485941068,-1019.36,0.00014931,2]
[353013339,1739485941078,-500.0,0.00014931,2]
[353013340,1739485941088,-536.11,0.00014931,2]
[353013341,1739485941098,-853.88,0.00014931,2]
[353013342,1739485941107,-500.0,0.00014931,2]
[353013343,1739485941116,-1237.75,0.00014931,2]
[353013344,1739485941126,-500.0,0.00014931,2]
[353013345,1739485941136,-823.6,0.00014931,2]
[353013346,1739485941146,-554.53561768,0.00014931,2]
[353013347,1739485941156,-588.86,0.00014931,2]
[353013348,1739485941166,-583.03,0.00014931,2]
[353013349,1739485941176,-839.01,0.00014931,2]
[353013350,1739485941186,-632.18,0.00014931,2]
[353013351,1739485941196,-1100.34,0.00014931,2]
[353013352,1739485941206,-500.0,0.00014931,2]
[353013353,1739485941217,-907.89,0.00014931,2]
[353013354,1739485941226,-500.0,0.00014931,2]
[353013355,1739485941236,-791.76,0.00014931,2]
[353013356,1739485941245,-500.0,0.00014931,2]
[353013357,1739485941256,-1002.52,0.00014931,2]
[353013358,1739485941265,-673.2,0.00014931,2]
[353013359,1739485941275,-864.99,0.00014931,2]
[353013360,1739485941285,-556.42,0.00014931,2]
[353013361,1739485941296,-606.37,0.00014931,2]
[353013362,1739485941306,-500.0,0.00014931,2]
[353013363,1739485941315,-500.0,0.00014931,2]
[353013364,1739485941327,-542.4,0.00014931,2]
[353013365,1739485941337,-500.0,0.00014931,2]
[353013366,1739485941347,-606.89,0.00014931,2]
[353013367,1739485941358,-551.03,0.00014931,2]
[353013368,1739485941370,-500.0,0.00014931,2]
[353013369,1739485941380,-571.58,0.00014931,2]
[353013370,1739485941398,-507.69,0.00014931,2]
[353013371,1739485941409,-500.0,0.00014931,2]
[353013372,1739485941419,-500.0,0.00014931,2]
[353013373,1739485941430,-500.0,0.00014931,2]
[353013374,1739485941440,-500.0,0.00014931,2]
[353013375,1739485941449,-500.0,0.00014931,2]
[353013376,1739485941459,-500.0,0.00014931,2]
[353013377,1739485941470,-2208.67,0.00014931,2]
[353013378,1739485941481,-543.67,0.00014931,2]
[353013379,1739485941492,-653.16,0.00014931,2]
[353013380,1739485941501,-823.62,0.00014931,2]
[353013381,1739485941510,-638.54,0.00014931,2]
[353013382,1739485941520,-1041.6,0.00014931,2]
[353013383,1739485941529,-500.0,0.00014931,2]
[353013384,1739485941539,-2539.19,0.00014931,2]
[353013385,1739485941553,-500.0,0.00014931,2]
[353013386,1739485941563,-3052.42,0.00014931,2]
[353013387,1739485941573,-514.61,0.00014931,2]
[353013388,1739485941583,-1525.33,0.00014931,2]
[353013389,1739485941594,-867.43,0.00014931,2]
[353013390,1739485941605,-538.20250584,0.00014931,2]
[353013391,1739485941616,-1400.14,0.00014931,2]
[353013392,1739485941626,-917.77,0.00014931,2]
[353013393,1739485941636,-1241.27,0.00014931,2]
[353013394,1739485941647,-991.55,0.00014931,2]
[353013395,1739485941657,-566.52,0.00014931,2]
[353013396,1739485941667,-500.0,0.00014931,2]
[353013397,1739485941679,-500.0,0.00014931,2]
[353013398,1739485941689,-500.0,0.00014931,2]
[353013399,1739485941699,-500.0,0.00014931,2]
[353013400,1739485941710,-633.2,0.00014931,2]
[353013401,1739485941720,-717.52,0.00014931,2]
[353013402,1739485941732,-689.5,0.00014931,2]
[353013403,1739485941742,-965.58,0.00014931,2]
[353013404,1739485941752,-756.27,0.00014931,2]
[353013405,1739485941763,-687.68,0.00014931,2]
[353013406,1739485941773,-1501.09,0.00014931,2]
[353013407,1739485941784,-1669.58,0.00014931,2]
[353013408,1739485941794,-825.83,0.00014931,2]
[353013409,1739485941806,-1337.74,0.00014931,2]
[353013410,1739485941816,-1371.86,0.00014931,2]
[353013411,1739485941825,-500.0,0.00014931,2]
[353013412,1739485941836,-500.0,0.00014931,2]
[353013413,1739485941846,-1702.26,0.00014931,2]
[353013414,1739485941857,-500.0,0.00014931,2]
[353013415,1739485941868,-1754.49,0.00014931,2]
[353013416,1739485941878,-1078.61,0.00014931,2]
[353013417,1739485941889,-869.45,0.00014931,2]
[353013418,1739485941900,-1158.07,0.00014931,2]
[353013419,1739485941911,-500.0,0.00014931,2]
[353013420,1739485941921,-991.47,0.00014931,2]
[353013421,1739485941934,-1684.45,0.00014931,2]
[353013422,1739485941944,-526.8,0.00014931,2]
[353013423,1739485941955,-660.93,0.00014931,2]
[353013424,1739485941965,-1302.35,0.00014931,2]
[353013425,1739485941975,-854.62,0.00014931,2]
[353013426,1739485941985,-2012.26,0.00014931,2]
[353013427,1739485941995,-504.56,0.00014931,2]
[353013428,1739485942005,-763.9,0.00014931,2]
[353013429,1739485942015,-696.46,0.00014931,2]
[353013430,1739485942025,-835.17,0.00014931,2]
[353013431,1739485942035,-692.97,0.00014931,2]
[353013432,1739485942050,-566.32,0.00014931,2]
[353013433,1739485942060,-857.95,0.00014931,2]
[353013434,1739485942071,-2021.1,0.00014931,2]
[353013435,1739485942080,-702.16,0.00014931,2]
[353013436,1739485942090,-683.82,0.00014931,2]
[353013437,1739485942101,-1015.7,0.00014931,2]
[353013438,1739485942111,-713.38,0.00014931,2]
[353013439,1739485942121,-500.0,0.00014931,2]
[353013440,1739485942132,-1424.92,0.00014931,2]
[353013441,1739485942142,-500.0,0.00014931,2]
[353013442,1739485942152,-500.0,0.00014931,2]
[353013443,1739485942162,-811.86,0.00014931,2]
[353013444,1739485942172,-988.11,0.00014931,2]
[353013445,1739485942183,-1906.79,0.00014931,2]
[353013446,1739485942193,-1427.42,0.00014931,2]
[353013447,1739485942203,-524.63,0.00014931,2]
[353013448,1739485942213,-500.0,0.00014931,2]
[353013449,1739485942223,-881.54,0.00014931,2]
[353013450,1739485942233,-865.9,0.00014931,2]
[353013451,1739485942243,-1372.61,0.00014931,2]
[353013452,1739485942253,-758.33,0.00014931,2]
[353013453,1739485942263,-1840.97,0.00014931,2]
[353013454,1739485942273,-1636.34,0.00014931,2]
[353013455,1739485942283,-1035.24,0.00014931,2]
[353013456,1739485942293,-1782.82,0.00014931,2]
[353013457,1739485942303,-557.25,0.00014931,2]
[353013458,1739485942313,-687.87,0.00014931,2]
[353013459,1739485942322,-888.74,0.00014931,2]
[353013460,1739485942332,-500.0,0.00014931,2]
[353013461,1739485942342,-1131.23,0.00014931,2]
[353013462,1739485942353,-548.09,0.00014931,2]
[353013463,1739485942362,-976.11,0.00014931,2]
[353013464,1739485942372,-1065.2,0.00014931,2]
[353013465,1739485942383,-500.0,0.00014931,2]
[353013466,1739485942393,-1519.15,0.00014931,2]
[353013467,1739485942403,-825.94,0.00014931,2]
[353013468,1739485942412,-717.12,0.00014931,2]
[353013469,1739485942422,-718.5,0.00014931,2]
[353013470,1739485942435,-500.0,0.00014931,2]
[353013471,1739485942445,-1464.62,0.00014931,2]
[353013472,1739485942455,-1779.83,0.00014931,2]
[353013473,1739485942464,-551.0,0.00014931,2]
[353013474,1739485942474,-1813.74,0.00014931,2]
[353013475,1739485942484,-558.37,0.00014931,2]
[353013476,1739485942494,-807.26,0.00014931,2]
[353013477,1739485942503,-1306.72,0.00014931,2]
[353013478,1739485942513,-1123.76,0.00014931,2]
[353013479,1739485942523,-500.0,0.00014931,2]
[353013480,1739485942533,-844.9,0.00014931,2]
[353013481,1739485942542,-2257.68,0.00014931,2]
[353013482,1739485942552,-831.33,0.00014931,2]
[353013483,1739485942562,-923.9,0.00014931,2]
[353013484,1739485942571,-500.0,0.00014931,2]
[353013485,1739485942581,-1270.71,0.00014931,2]
[353013486,1739485942591,-897.69,0.00014931,2]
[353013487,1739485942600,-853.17,0.00014931,2]
[353013488,1739485942610,-840.31,0.00014931,2]
[353013489,1739485942620,-1705.94,0.00014931,2]
[353013490,1739485942631,-500.0,0.00014931,2]
[353013491,1739485942640,-876.71,0.00014931,2]
[353013492,1739485942651,-885.91,0.00014931,2]
[353013493,1739485942660,-500.0,0.00014931,2]
[353013494,1739485942669,-2161.09,0.00014931,2]
[353013495,1739485942681,-500.0,0.00014931,2]
[353013496,1739485942691,-3040.0,0.00014931,2]
[353013497,1739485942700,-1238.79,0.00014931,2]
[353013498,1739485942710,-1105.8,0.00014931,2]
[353013499,1739485942720,-2265.19,0.00014931,2]
[353013500,1739485942730,-1322.86,0.00014931,2]
[353013501,1739485942739,-906.34,0.00014931,2]
[353013502,1739485942749,-523.6,0.00014931,2]
[353013503,1739485942759,-646.18,0.00014931,2]
[353013504,1739485942769,-893.53,0.00014931,2]
[353013505,1739485942779,-970.55,0.00014931,2]
[353013506,1739485942789,-702.31,0.00014931,2]
[353013507,1739485942799,-553.1,0.00014931,2]
[353013508,1739485942810,-2482.92,0.00014931,2]
[353013509,1739485942820,-500.0,0.00014931,2]
[353013510,1739485942830,-858.18,0.00014931,2]
[353013511,1739485942840,-669.76,0.00014931,2]
[353013512,1739485942849,-710.97,0.00014931,2]
[353013513,1739485942859,-1892.5,0.00014931,2]
[353013514,1739485942869,-739.26,0.00014931,2]
[353013515,1739485942878,-1559.26,0.00014931,2]
[353013516,1739485942888,-1326.07,0.00014931,2]
[353013517,1739485942898,-602.38,0.00014931,2]
[353013518,1739485942907,-835.99,0.00014931,2]
[353013519,1739485942918,-1789.82,0.00014931,2]
[353013520,1739485942928,-500.0,0.00014931,2]
[353013521,1739485942938,-1318.31,0.00014931,2]
[353013522,1739485942948,-551.86,0.00014931,2]
[353013523,1739485942958,-864.67,0.00014931,2]
[353013524,1739485942968,-500.0,0.00014931,2]
[353013525,1739485942978,-1141.82,0.00014931,2]
[353013526,1739485942987,-1994.16,0.00014931,2]
[353013527,1739485942997,-812.11,0.00014931,2]
[353013528,1739485943007,-500.0,0.00014931,2]
[353013529,1739485943017,-1079.19,0.00014931,2]
[353013530,1739485943029,-859.06,0.00014931,2]
[353013531,1739485943040,-1941.15,0.00014931,2]
[353013532,1739485943050,-2409.32,0.00014931,2]
[353013533,1739485943060,-592.63,0.00014931,2]
[353013534,1739485943069,-900.38,0.00014931,2]
[353013535,1739485943081,-1741.64,0.00014931,2]
[353013536,1739485943091,-1010.42,0.00014931,2]
[353013537,1739485943101,-1201.88,0.00014931,2]
[353013538,1739485943111,-730.65,0.00014931,2]
[353013539,1739485943121,-2964.55,0.00014931,2]
[353013540,1739485943131,-645.62,0.00014931,2]